fUSD/lending_fUSD_20240409
["ID","MTS","AMOUNT","RATE_DAILY","PERIOD"]
[321957280,1712650265429,-500.0,0.00021369,2]
[321957281,1712650265439,-889.31,0.00021369,2]
[321957282,1712650265448,-500.0,0.00021369,2]
[321957283,1712650265458,-500.0,0.00021369,2]
[321957284,1712650265467,-500.0,0.00021369,2]
[321957285,1712650265477,-500.0,0.00021369,2]
[321957286,1712650265487,-500.0,0.00021369,2]
[321957287,1712650265497,-500.0,0.00021369,2]
[321957288,1712650265508,-500.0,0.00021369,2]
[321957289,1712650265521,-1387.1,0.00021369,2]
[321957290,1712650265531,-500.0,0.00021369,2]
[321957291,1712650265542,-500.0,0.00021369,2]
[321957292,1712650265554,-500.0,0.00021369,2]
[321957293,1712650265563,-1817.39,0.00021369,2]
[321957294,1712650265573,-500.0,0.00021369,2]
[321957295,1712650265583,-581.79164803,0.00021369,2]
[321957296,1712650265592,-1084.85,0.00021369,2]
[321957297,1712650265602,-697.35,0.00021369,2]
[321957298,1712650265618,-500.0,0.00021369,2]
[321957299,1712650265628,-500.0,0.00021369,2]
[321957300,1712650265638,-561.46827328,0.00021369,2]
[321957301,1712650265647,-500.0,0.00021369,2]
[321957302,1712650265658,-500.0,0.00021369,2]
[321957303,1712650265667,-1016.11,0.00021369,2]
[321957304,1712650265677,-500.0,0.00021369,2]
[321957305,1712650265686,-500.0,0.00021369,2]
[321957306,1712650265782,-854.23,0.00021369,2]
[321957307,1712650265792,-500.0,0.00021369,2]
[321957308,1712650265802,-500.0,0.00021369,2]
[321957309,1712650265815,-500.0,0.00021369,2]
[321957310,1712650265826,-500.0,0.00021369,2]
[321957311,1712650265842,-500.0,0.00021369,2]
[321957312,1712650265853,-500.0,0.00021369,2]
[321957313,1712650265871,-500.0,0.00021369,2]
[321957314,1712650265881,-500.0,0.00021369,2]
[321957315,1712650265890,-572.56,0.00021369,2]
[321957316,1712650265900,-521.54,0.00021369,2]
[321957317,1712650265911,-810.92,0.00021369,2]
[321957318,1712650265921,-500.0,0.00021369,2]
[321957319,1712650265931,-500.0,0.00021369,2]
[321957320,1712650265942,-500.0,0.00021369,2]
[321957321,1712650265954,-500.0,0.00021369,2]
[321957322,1712650265964,-500.0,0.00021369,2]
[321957323,1712650265974,-660.1,0.00021369,2]
[321957324,1712650265985,-569.41575168,0.00021369,2]
[321957325,1712650265996,-841.79,0.00021369,2]
[321957326,1712650266007,-1203.54,0.00021369,2]
[321957327,1712650266018,-500.0,0.00021369,2]
[321957328,1712650266028,-500.0,0.00021369,2]
[321957329,1712650266039,-992.59,0.00021369,2]
[321957330,1712650266050,-500.0,0.00021369,2]
[321957331,1712650266060,-500.0,0.00021369,2]
[321957332,1712650266071,-500.0,0.00021369,2]
[321957333,1712650266082,-500.0,0.00021369,2]
[321957334,1712650266092,-500.0,0.00021369,2]
[321957335,1712650266102,-500.0,0.00021369,2]
[321957336,1712650266117,-500.0,0.00021369,2]
[321957337,1712650266127,-500.0,0.00021369,2]
[321957338,1712650266136,-592.06797515,0.00021369,2]
[321957339,1712650266146,-500.0,0.00021369,2]
[321957340,1712650266156,-655.69,0.00021369,2]
[321957341,1712650266165,-500.0,0.00021369,2]
[321957342,1712650266175,-500.0,0.00021369,2]
[321957343,1712650266184,-500.0,0.00021369,2]
[321957344,1712650266194,-500.0,0.00021369,2]
[321957345,1712650266203,-681.67,0.00021369,2]
[321957346,1712650266212,-500.0,0.00021369,2]
[321957347,1712650266222,-540.01,0.00021369,2]
[321957348,1712650266231,-500.0,0.00021369,2]
[321957349,1712650266241,-500.0,0.00021369,2]
[321957350,1712650266251,-500.0,0.00021369,2]
[321957351,1712650266261,-500.0,0.00021369,2]
[321957352,1712650266270,-500.0,0.00021369,2]
[321957353,1712650266280,-629.6,0.00021369,2]
[321957354,1712650266289,-607.58845813,0.00021369,2]
[321957355,1712650266299,-500.0,0.00021369,2]
[321957356,1712650266309,-500.0,0.00021369,2]
[321957357,1712650266319,-525.95545122,0.00021369,2]
[321957358,1712650266328,-521.41,0.00021369,2]
[321957359,1712650266338,-500.0,0.00021369,2]
[321957360,1712650266347,-500.0,0.00021369,2]
[321957361,1712650266356,-500.0,0.00021369,2]
[321957362,1712650266373,-500.0,0.00021369,2]
[321957363,1712650266382,-594.4,0.00021369,2]
[321957364,1712650266392,-500.0,0.00021369,2]
[321957365,1712650266401,-500.0,0.00021369,2]
[321957366,1712650266412,-500.0,0.00021369,2]
[321957367,1712650266421,-1029.28,0.00021369,2]
[321957368,1712650266430,-500.0,0.00021369,2]
[321957369,1712650266440,-500.0,0.00021369,2]
[321957370,1712650266449,-500.0,0.00021369,2]
[321957371,1712650266459,-500.0,0.00021369,2]
[321957372,1712650266468,-500.0,0.00021369,2]
[321957373,1712650266478,-500.0,0.00021369,2]
[321957374,1712650266487,-500.0,0.00021369,2]
[321957375,1712650266497,-500.0,0.00021369,2]
[321957376,1712650266506,-763.7,0.00021369,2]
[321957377,1712650266516,-1155.42,0.00021369,2]
[321957378,1712650266525,-500.0,0.00021369,2]
[321957379,1712650266537,-534.84,0.00021369,2]
[321957380,1712650266547,-561.66019136,0.00021369,2]
[321957381,1712650266556,-500.0,0.00021369,2]
[321957382,1712650266566,-858.89,0.00021369,2]
[321957383,1712650266575,-500.0,0.00021369,2]
[321957384,1712650266585,-500.0,0.00021369,2]
[321957385,1712650266594,-490.05813882,0.00021369,2]
[321957386,1712650266603,-500.0,0.00021369,2]
[321957387,1712650266618,-335.45549874,0.00021369,2]
[321957388,1712650266628,-156.16,0.00021369,2]
[321957389,1712650266637,-500.0,0.00021369,2]
[321957390,1712650266647,-500.0,0.00021369,2]
[321957391,1712650266657,-1190.37,0.00021369,2]
[321957392,1712650266667,-500.0,0.00021369,2]
[321957393,1712650266676,-500.0,0.00021369,2]
[321957394,1712650266686,-500.0,0.00021369,2]
[321957395,1712650266695,-500.0,0.00021369,2]
[321957396,1712650266705,-500.0,0.00021369,2]
[321957397,1712650266715,-512.86,0.00021369,2]
[321957398,1712650266724,-500.0,0.00021369,2]
[321957399,1712650266734,-500.0,0.00021369,2]
[321957400,1712650266744,-457.07769407,0.00021369,2]
[321957401,1712650267268,-42.92230593,0.00021369,2]
[321957402,1712650267278,-500.0,0.00021369,2]
[321957403,1712650267287,-500.0,0.00021369,2]
[321957404,1712650267297,-588.66225515,0.00021369,2]
[321957405,1712650267310,-596.26774485,0.00021369,2]
[321957406,1712650267320,-500.0,0.00021369,2]
[321957407,1712650267329,-103.70253554,0.00021369,2]
[321957408,1712650267382,-500.0,0.00020821,2]
[321957409,1712650267392,-396.29746446,0.00021369,2]
[321957410,1712650267403,-500.0,0.00021369,2]
[321957411,1712650267413,-792.88,0.00021369,2]
[321957412,1712650267422,-500.0,0.00021369,2]
[321957413,1712650267431,-500.0,0.00021369,2]
[321957414,1712650267440,-368.45113361,0.00021369,2]
[321957415,1712650267450,-500.0,0.00021369,2]
[321957416,1712650267459,-500.0,0.00021369,2]
[321957417,1712650267470,-500.0,0.00021369,2]
[321957418,1712650267479,-500.0,0.00021369,2]
[321957419,1712650267490,-792.54,0.00021369,2]
[321957420,1712650267500,-500.0,0.00021369,2]
[321957421,1712650267510,-128.10956193,0.00021369,2]
[321957422,1712650267524,-371.89043807,0.00021369,2]
[321957423,1712650267534,-196.21596511,0.00021369,2]
[321957424,1712650267563,-643.72403489,0.00021369,2]
[321957425,1712650267573,-1393.44,0.00021369,2]
[321957426,1712650267582,-709.17,0.00021369,2]
[321957427,1712650267592,-500.0,0.00021369,2]
[321957428,1712650267602,-71.71183711,0.00021369,2]
[321957429,1712650267622,-428.28816289,0.00021369,2]
[321957430,1712650267631,-500.0,0.00021369,2]
[321957431,1712650267641,-1175.42,0.00021369,2]
[321957432,1712650267650,-500.0,0.00021369,2]
[321957433,1712650267660,-500.0,0.00021369,2]
[321957434,1712650267671,-500.0,0.00021369,2]
[321957435,1712650267681,-4269.43,0.00021369,2]
[321957436,1712650267690,-1699.95,0.00021369,2]
[321957437,1712650267700,-500.0,0.00021369,2]
[321957438,1712650267710,-500.0,0.00021369,2]
[321957439,1712650267720,-1064.66,0.00021369,2]
[321957440,1712650267730,-500.0,0.00021369,2]
[321957441,1712650267740,-500.0,0.00021369,2]
[321957442,1712650267751,-500.0,0.00021369,2]
[321957443,1712650267760,-500.0,0.00021369,2]
[321957444,1712650267770,-2318.58,0.00021369,2]
[321957445,1712650267780,-2045.25,0.00021369,2]
[321957446,1712650267790,-500.0,0.00021369,2]
[321957447,1712650267801,-852.26776643,0.00021369,2]
[321957448,1712650267820,-1921.48223357,0.00021369,2]
[321957449,1712650267837,-1836.93,0.00021369,2]
[321957450,1712650267848,-1906.39,0.00021369,2]
[321957451,1712650267858,-370.81980614,0.00021369,2]
[321957452,1712650267883,-129.18019386,0.00021369,2]
[321957453,1712650267894,-500.0,0.00021369,2]
[321957454,1712650267905,-500.0,0.00021369,2]
[321957455,1712650267917,-500.0,0.00021369,2]
[321957456,1712650267927,-500.0,0.00021369,2]
[321957457,1712650267937,-1252.27,0.00021369,2]
[321957458,1712650267947,-500.0,0.00021369,2]
[321957459,1712650267957,-500.0,0.00021369,2]
[321957460,1712650267966,-98.73332248,0.00021369,2]
[321957461,1712650267989,-401.26667752,0.00021369,2]
[321957462,1712650267999,-591.57,0.00021369,2]
[321957463,1712650268008,-500.0,0.00021369,2]
[321957464,1712650268018,-1230.47,0.00021369,2]
[321957465,1712650268027,-481.81151661,0.00021369,2]
[321957466,1712650268040,-18.18848339,0.00021369,2]
[321957467,1712650268049,-856.76,0.00021369,2]
[321957468,1712650268058,-500.0,0.00021369,2]
[321957469,1712650268067,-500.0,0.00021369,2]
[321957470,1712650268076,-500.0,0.00021369,2]
[321957471,1712650268086,-582.018312,0.00021369,2]
[321957472,1712650268098,-217.301688,0.00021369,2]
[321957473,1712650268107,-928.47,0.00021369,2]
[321957474,1712650268124,-61.97085998,0.00021369,2]
[321957475,1712650268136,-438.02914002,0.00021369,2]
[321957476,1712650268146,-2427.06,0.00021369,2]
[321957477,1712650268156,-65.85305515,0.00021369,2]
[321957478,1712650268168,-2074.68694485,0.00021369,2]
[321957479,1712650268178,-1036.55,0.00021369,2]
[321957480,1712650268187,-1252.3,0.00021369,2]
[321957481,1712650268197,-500.0,0.00021369,2]
[321957482,1712650268207,-951.92,0.00021369,2]
[321957483,1712650268217,-121.68744724,0.00021369,2]
[321957484,1712650268229,-699.95255276,0.00021369,2]
[321957485,1712650268239,-2289.17,0.00021369,2]
[321957486,1712650268249,-500.0,0.00021369,2]
[321957487,1712650268259,-535.65,0.00021369,2]
[321957488,1712650268269,-914.1,0.00021369,2]
[321957489,1712650268278,-502.56,0.00021369,2]
[321957490,1712650268287,-1942.51,0.00021369,2]
[321957491,1712650268296,-621.47,0.00021369,2]
[321957492,1712650268305,-500.0,0.00021369,2]
[321957493,1712650268314,-718.81,0.00021369,2]
[321957494,1712650268324,-1219.4,0.00021369,2]
[321957495,1712650268333,-600.82,0.00021369,2]
[321957496,1712650268342,-460.60198449,0.00021369,2]
[321957497,1712650268351,-500.0,0.00021369,2]
[321957498,1712650268361,-500.0,0.00021369,2]
[321957499,1712650268373,-500.0,0.00021369,2]
[321957500,1712650268384,-1217.42,0.00021369,2]
[321957501,1712650268393,-532.89,0.00021369,2]
[321957502,1712650268402,-878.12,0.00021369,2]
[321957503,1712650268411,-500.0,0.00021369,2]
[321957504,1712650268420,-500.0,0.00021369,2]
[321957505,1712650268429,-2003.27,0.00021369,2]
[321957506,1712650268438,-856.28,0.00021369,2]
[321957507,1712650268448,-990.48,0.00021369,2]
[321957508,1712650268458,-500.0,0.00021369,2]
[321957509,1712650268468,-500.0,0.00021369,2]
[321957510,1712650268480,-892.64,0.00021369,2]
[321957511,1712650268490,-807.2887718,0.00021369,2]
[321957512,1712650268523,-11.2012282,0.00021369,2]
[321957513,1712650268533,-918.36,0.00021369,2]
[321957514,1712650268542,-264.18397544,0.00021369,2]
[321957515,1712650268553,-283.84602456,0.00021369,2]
[321957516,1712650268562,-500.0,0.00021369,2]
[321957517,1712650268572,-798.23,0.00021369,2]
[321957518,1712650268582,-617.89,0.00021369,2]
[321957519,1712650268591,-2000.16,0.00021369,2]
[321957520,1712650268601,-1878.14,0.00021369,2]
[321957521,1712650268611,-671.48,0.00021369,2]
[321957522,1712650268623,-707.13,0.00021369,2]
[321957523,1712650268632,-500.0,0.00021369,2]
[321957524,1712650268642,-2537.29,0.00021369,2]
[321957525,1712650268650,-500.0,0.00021369,2]
[321957526,1712650268661,-500.0,0.00021369,2]
[321957527,1712650268669,-500.0,0.00021369,2]
[321957528,1712650268678,-849.31,0.00021369,2]
[321957529,1712650268687,-1046.91,0.00021369,2]
[321957530,1712650268696,-500.0,0.00021369,2]
[321957531,1712650268706,-500.0,0.00021369,2]
[321957532,1712650268715,-57.11397544,0.00021369,2]
[321957533,1712650268727,-373.37349282,0.00021369,2]
[321957534,1712650268787,-69.51253174,0.00021369,2]
[321957535,1712650268796,-417.67503211,0.00021369,2]
[321957536,1712650268808,-104.58496789,0.00021369,2]
[321957537,1712650268817,-500.0,0.00021369,2]
[321957538,1712650268829,-500.0,0.00021369,2]
[321957539,1712650268838,-1270.3,0.00021369,2]
[321957540,1712650268848,-1611.97,0.00021369,2]
[321957541,1712650268857,-2013.33,0.00021369,2]
[321957542,1712650268882,-1667.84,0.00021369,2]
[321957543,1712650268892,-1312.36003208,0.00021369,2]
[321957544,1712650268906,-288.62996792,0.00021369,2]
[321957545,1712650268921,-500.0,0.00021369,2]
[321957546,1712650268930,-500.0,0.00021369,2]
[321957547,1712650268939,-2243.15,0.00021369,2]
[321957548,1712650268950,-1336.43,0.00021369,2]
[321957549,1712650268959,-616.42,0.00021369,2]
[321957550,1712650268969,-500.0,0.00021369,2]
[321957551,1712650268978,-1273.64,0.00021369,2]
[321957552,1712650268987,-825.34,0.00021369,2]
[321957553,1712650268998,-500.0,0.00021369,2]
[321957554,1712650269008,-2017.39,0.00021369,2]
[321957555,1712650269018,-571.82,0.00021369,2]
[321957556,1712650269027,-1110.03,0.00021369,2]
[321957557,1712650269037,-1042.8,0.00021369,2]
[321957558,1712650269047,-632.4,0.00021369,2]
[321957559,1712650269056,-2125.91,0.00021369,2]
[321957560,1712650269066,-500.0,0.00021369,2]
[321957561,1712650269075,-500.0,0.00021369,2]
[321957562,1712650269084,-1511.99,0.00021369,2]
[321957563,1712650269094,-500.0,0.00021369,2]
[321957564,1712650269103,-510.44,0.00021369,2]
[321957565,1712650269118,-500.0,0.00021369,2]
[321957566,1712650269127,-500.0,0.00021369,2]
[321957567,1712650269136,-500.0,0.00021369,2]
[321957568,1712650269145,-500.0,0.00021369,2]
[321957569,1712650269157,-1650.62,0.00021369,2]
[321957570,1712650269166,-500.0,0.00021369,2]
[321957571,1712650269176,-677.68,0.00021369,2]
[321957572,1712650269185,-500.0,0.00021369,2]
[321957573,1712650269195,-500.0,0.00021369,2]
[321957574,1712650269204,-500.0,0.00021369,2]
[321957575,1712650269213,-500.0,0.00021369,2]
[321957576,1712650269223,-660.69,0.00021369,2]
[321957577,1712650269232,-500.0,0.00021369,2]
[321957578,1712650269242,-500.0,0.00021369,2]
[321957579,1712650269251,-1791.63,0.00021369,2]
[321957580,1712650269260,-527.84,0.00021369,2]
[321957581,1712650269270,-500.0,0.00021369,2]
[321957582,1712650269279,-1316.79,0.00021369,2]
[321957583,1712650269289,-731.05,0.00021369,2]
[321957584,1712650269298,-500.0,0.00021369,2]
[321957585,1712650269307,-626.98,0.00021369,2]
[321957586,1712650269316,-500.0,0.00021369,2]
[321957587,1712650269325,-547.11,0.00021369,2]
[321957588,1712650269335,-518.7,0.00021369,2]
[321957589,1712650269344,-500.0,0.00021369,2]
[321957590,1712650269353,-607.52,0.00021369,2]
[321957591,1712650269366,-500.0,0.00021369,2]
[321957592,1712650269375,-500.0,0.00021369,2]
[321957593,1712650269384,-600.03,0.00021369,2]
[321957594,1712650269393,-683.76,0.00021369,2]
[321957595,1712650269402,-500.0,0.00021369,2]
[321957596,1712650269411,-730.25,0.00021369,2]
[321957597,1712650269580,-500.0,0.00021369,2]
[321957598,1712650269589,-506.83,0.00021369,2]
[321957599,1712650269598,-544.42,0.00021369,2]
[321957600,1712650269607,-500.0,0.00021369,2]
[321957601,1712650269621,-522.29204454,0.00021369,2]
[321957602,1712650269630,-1148.74,0.00021369,2]
[321957603,1712650269639,-500.0,0.00021369,2]
[321957604,1712650269651,-1029.72,0.00021369,2]
[321957605,1712650269660,-500.0,0.00021369,2]
[321957606,1712650269670,-500.0,0.00021369,2]
[321957607,1712650269679,-527.05,0.00021369,2]
[321957608,1712650269688,-1779.44,0.00021369,2]
[321957609,1712650269698,-500.0,0.00021369,2]
[321957610,1712650269707,-797.36,0.00021369,2]
[321957611,1712650269716,-1699.94,0.00021369,2]
[321957612,1712650269725,-1133.71,0.00021369,2]
[321957613,1712650269735,-700.84,0.00021369,2]
[321957614,1712650269745,-664.95,0.00021369,2]
[321957615,1712650269755,-1189.81,0.00021369,2]
[321957616,1712650269764,-500.0,0.00021369,2]
[321957617,1712650269774,-2032.14,0.00021369,2]
[321957618,1712650269783,-500.0,0.00021369,2]
[321957619,1712650269792,-500.0,0.00021369,2]
[321957620,1712650269802,-500.0,0.00021369,2]
[321957621,1712650269811,-1519.5,0.00021369,2]
[321957622,1712650269820,-789.82,0.00021369,2]
[321957623,1712650269834,-806.25,0.00021369,2]
[321957624,1712650269843,-2251.62,0.00021369,2]
[321957625,1712650269853,-500.0,0.00021369,2]
[321957626,1712650269865,-895.87,0.00021369,2]
[321957627,1712650269876,-510.84,0.00021369,2]
[321957628,1712650269888,-500.0,0.00021369,2]
[321957629,1712650269897,-768.57,0.00021369,2]
[321957630,1712650269907,-500.0,0.00021369,2]
[321957631,1712650269917,-500.0,0.00021369,2]
[321957632,1712650269926,-500.0,0.00021369,2]
[321957633,1712650269935,-2479.41,0.00021369,2]
[321957634,1712650269944,-502.96846421,0.00021369,2]
[321957635,1712650269954,-2511.87,0.00021369,2]
[321957636,1712650269963,-500.0,0.00021369,2]
[321957637,1712650269974,-500.0,0.00021369,2]
[321957638,1712650269984,-500.0,0.00021369,2]
[321957639,1712650269993,-523.03,0.00021369,2]
[321957640,1712650270003,-1620.04,0.00021369,2]
[321957641,1712650270012,-956.66,0.00021369,2]
[321957642,1712650270022,-500.0,0.00021369,2]
[321957643,1712650270031,-690.4,0.00021369,2]
[321957644,1712650270040,-500.0,0.00021369,2]
[321957645,1712650270050,-644.14,0.00021369,2]
[321957646,1712650270059,-500.0,0.00021369,2]
[321957647,1712650270068,-500.0,0.00021369,2]
[321957648,1712650270078,-2029.65,0.00021369,2]
[321957649,1712650270087,-500.0,0.00021369,2]
[321957650,1712650270096,-500.0,0.00021369,2]
[321957651,1712650270105,-500.0,0.00021369,2]
[321957652,1712650270119,-500.0,0.00021369,2]
[321957653,1712650270128,-204.09933081,0.00021369,2]
[321957654,1712650270138,-500.0,0.00021369,2]
[321957655,1712650270147,-500.0,0.00021369,2]
[321957656,1712650270160,-523.79,0.00021369,2]
[321957657,1712650270169,-500.0,0.00021369,2]
[321957658,1712650270179,-500.0,0.00021369,2]
[321957659,1712650270188,-500.0,0.00021369,2]
[321957660,1712650270197,-304.34139729,0.00021369,2]
[321957661,1712650270206,-1875.56,0.00021369,2]
[321957662,1712650270215,-1761.48,0.00021369,2]
[321957663,1712650270225,-741.13,0.00021369,2]
[321957664,1712650270233,-264.8526924,0.00021369,2]
[321957665,1712650270244,-500.0,0.00021369,2]
[321957666,1712650270254,-1670.87,0.00021369,2]
[321957667,1712650270264,-855.18,0.00021369,2]
[321957668,1712650270274,-820.21,0.00021369,2]
[321957669,1712650270284,-316.4206797,0.00021369,2]
[321957670,1712650270293,-500.0,0.00021369,2]
[321957671,1712650270303,-1380.56,0.00021369,2]
[321957672,1712650270312,-550.46352423,0.00021369,2]
[321957673,1712650270321,-651.48,0.00021369,2]
[321957674,1712650270331,-887.17,0.00021369,2]
[321957675,1712650270340,-1581.11,0.00021369,2]
[321957676,1712650270350,-500.0,0.00021369,2]
[321957677,1712650270360,-3598.23,0.00021369,2]
[321957678,1712650270372,-500.0,0.00021369,2]
[321957679,1712650270383,-301.16500429,0.00021369,2]
[321957680,1712650270392,-500.0,0.00021369,2]
[321957681,1712650270401,-1088.84,0.00021369,2]
[321957682,1712650270411,-500.0,0.00021369,2]
[321957683,1712650270420,-500.0,0.00021369,2]
[321957684,1712650270430,-1285.16,0.00021369,2]
[321957685,1712650270439,-500.0,0.00021369,2]
[321957686,1712650270449,-1082.36,0.00021369,2]
[321957687,1712650270458,-1241.11,0.00021369,2]
[321957688,1712650270467,-500.0,0.00021369,2]
[321957689,1712650270477,-500.0,0.00021369,2]
[321957690,1712650270486,-500.0,0.00021369,2]
[321957691,1712650270496,-1012.59,0.00021369,2]
[321957692,1712650270506,-500.0,0.00021369,2]
[321957693,1712650270515,-500.0,0.00021369,2]
[321957694,1712650270524,-500.0,0.00021369,2]
[321957695,1712650270534,-557.94,0.00021369,2]
[321957696,1712650270543,-629.8,0.00021369,2]
[321957697,1712650270552,-500.0,0.00021369,2]
[321957698,1712650270563,-500.0,0.00021369,2]
[321957699,1712650270572,-1295.15,0.00021369,2]
[321957700,1712650270582,-500.0,0.00021369,2]
[321957701,1712650270591,-1150.46,0.00021369,2]
[321957702,1712650270601,-1006.41,0.00021369,2]
[321957703,1712650270613,-500.0,0.00021369,2]
[321957704,1712650270623,-489.75648936,0.00021369,2]
[321957705,1712650270632,-500.0,0.00021369,2]
[321957706,1712650270641,-500.0,0.00021369,2]
[321957707,1712650270653,-500.0,0.00021369,2]
[321957708,1712650270663,-500.0,0.00021369,2]
[321957709,1712650270673,-1826.74,0.00021369,2]
[321957710,1712650270682,-500.0,0.00021369,2]
[321957711,1712650270692,-500.0,0.00021369,2]
[321957712,1712650270701,-500.0,0.00021369,2]
[321957713,1712650270711,-500.0,0.00021369,2]
[321957714,1712650270721,-500.0,0.00021369,2]
[321957715,1712650270730,-18775.45,0.00021369,2]
[321957716,1712650270741,-500.0,0.00021369,2]
[321957717,1712650270750,-992.97,0.00021369,2]
[321957718,1712650270760,-500.0,0.00021369,2]
[321957719,1712650270770,-500.0,0.00021369,2]
[321957720,1712650270780,-500.0,0.00021369,2]
[321957721,1712650270789,-1501.27,0.00021369,2]
[321957722,1712650270799,-957.58,0.00021369,2]
[321957723,1712650270808,-500.0,0.00021369,2]
[321957724,1712650270818,-500.0,0.00021369,2]
[321957725,1712650270830,-500.0,0.00021369,2]
[321957726,1712650270839,-500.0,0.00021369,2]
[321957727,1712650270849,-542.33,0.00021369,2]
[321957728,1712650270858,-500.0,0.00021369,2]
[321957729,1712650270878,-3539.11,0.00021369,2]
[321957730,1712650270888,-500.0,0.00021369,2]
[321957731,1712650270898,-805.54,0.00021369,2]
[321957732,1712650270909,-2325.52,0.00021369,2]
[321957733,1712650270919,-519.76,0.00021369,2]
[321957734,1712650270928,-500.0,0.00021369,2]
[321957735,1712650270937,-2389.4,0.00021369,2]
[321957736,1712650270946,-540.8473774,0.00021369,2]
[321957737,1712650270957,-500.0,0.00021369,2]
[321957738,1712650270967,-500.0,0.00021369,2]
[321957739,1712650270977,-500.0,0.00021369,2]
[321957740,1712650270987,-500.0,0.00021369,2]
[321957741,1712650270997,-500.0,0.00021369,2]
[321957742,1712650271007,-2009.85,0.00021369,2]
[321957743,1712650271016,-500.0,0.00021369,2]
[321957744,1712650271027,-500.0,0.00021369,2]
[321957745,1712650271037,-3291.96,0.00021369,2]
[321957746,1712650271047,-1264.36,0.00021369,2]
[321957747,1712650271057,-781.37,0.00021369,2]
[321957748,1712650271067,-500.0,0.00021369,2]
[321957749,1712650271078,-500.0,0.00021369,2]
[321957750,1712650271088,-158.02781789,0.00021369,2]
[321957751,1712650271097,-500.0,0.00021369,2]
[321957752,1712650271107,-500.0,0.00021369,2]
[321957753,1712650271124,-500.0,0.00021369,2]
[321957754,1712650271134,-500.0,0.00021369,2]
[321957755,1712650271144,-500.0,0.00021369,2]
[321957756,1712650271156,-1086.83,0.00021369,2]
[321957757,1712650271168,-533.59485684,0.00021369,2]
[321957758,1712650271178,-500.0,0.00021369,2]
[321957759,1712650271187,-721.65,0.00021369,2]
[321957760,1712650271197,-902.39,0.00021369,2]
[321957761,1712650271206,-500.0,0.00021369,2]
[321957762,1712650271216,-3015.88,0.00021369,2]
[321957763,1712650271227,-500.0,0.00021369,2]
[321957764,1712650271236,-515.83,0.00021369,2]
[321957765,1712650271246,-3293.58,0.00021369,2]
[321957766,1712650271256,-1568.6,0.00021369,2]
[321957767,1712650271265,-3546.41,0.00021369,2]
[321957768,1712650271275,-1532.06,0.00021369,2]
[321957769,1712650271286,-500.0,0.00021369,2]
[321957770,1712650271295,-3343.66,0.00021369,2]
[321957771,1712650271305,-1469.91,0.00021369,2]
[321957772,1712650271314,-500.0,0.00021369,2]
[321957773,1712650271323,-500.0,0.00021369,2]
[321957774,1712650271333,-1553.53,0.00021369,2]
[321957775,1712650271343,-500.0,0.00021369,2]
[321957776,1712650271352,-500.0,0.00021369,2]
[321957777,1712650271367,-2063.39,0.00021369,2]
[321957778,1712650271377,-500.0,0.00021369,2]
[321957779,1712650271387,-587.06,0.00021369,2]